Cogmind - Beta 13 @@@ ROGUE MODE // 2024.05.30 @ 18:30:15 Player: skkpq Result: Destroyed by H-61 Shepherd with Heavy Assault Cannon Performance ------------- Evolutions (2) 1000 Regions Visited (3) 600 Robots Destroyed (44) 220 Value Destroyed (1423) 1423 Prototype IDs (2) 40 Alien Tech Used (0) 0 Bonus (0) 0 TOTAL SCORE: 3283 Bonus ------- None Cogmind --------- Core Integrity 0/550 Matter 280/300 Energy 224/265 System Corruption 0% Temperature Cool (89) Movement Rolling (115) Ox1 Location -8/Materials Parts ------- > --- POWER (1) -------- Improved Ion Engine > --- PROPULSION (3) --- Light Treads Compact Wheel > --- UTILITY (4) ------ Small Storage Unit Weapon Cycler Light Armor Plating Light Armor Plating > --- WEAPON (3) ------- EM Pulse Cannon Mini Grenade Launcher > --- INVENTORY (8) ---- Weapon Cycler Medium Armor Plating Medium Armor Plating Shock Rifle Shock Rifle Shock Rifle Light Assault Rifle Heavy Assault Rifle Peak State ------------ > --- POWER ------------ Improved Ion Engine > --- PROPULSION ------- Light Treads Compact Wheel > --- UTILITY ---------- Small Storage Unit Weapon Cycler Light Armor Plating Light Armor Plating > --- WEAPON ----------- EM Pulse Cannon Mini Grenade Launcher Heavy Mace > --- INVENTORY -------- Weapon Cycler Weapon Cycler Weapon Cycler Shock Rifle Shock Rifle Light Assault Rifle Heavy Assault Rifle [Rating: 21] Favorites ----------- Power Light Ion Engine Engine Light Ion Engine Propulsion Aluminum Leg Treads Light Treads Leg Aluminum Leg Wheel Compact Wheel Utility Small Storage Unit Device Sensor Array Storage Small Storage Unit Protection Improved Weapon Shielding Weapon Heavy Mace Energy Gun EM Pulse Gun Energy Cannon EM Pulse Cannon Ballistic Gun Light Assault Rifle Launcher Mini Grenade Launcher Impact Weapon Heavy Mace Build | -11 -10 -9 -8 ------- Run | Yrd Mat Mat Mat Slots Evolved 4 | . . 2 2 Power . | . . . . Propulsion 1 | . . . 1 Utility 2 | . . 1 1 Weapon 1 | . . 1 . Parts Attached 44 | 6 8 10 20 Power 6 | 1 1 1 3 Engine 6 | 1 1 1 3 Core . | . . . . Reactor . | . . . . Propulsion 10 | 2 2 2 4 Treads 3 | 2 . . 1 Leg 6 | . 2 2 2 Wheel 1 | . . . 1 Hover . | . . . . Flight . | . . . . Utility 14 | 1 2 3 8 Device 6 | . 2 . 4 Storage 2 | 1 . 1 . Processor . | . . . . Hackware . | . . . . Protection 6 | . . 2 4 Artifact . | . . . . Weapon 14 | 2 3 4 5 Energy Gun 3 | 1 1 1 . Energy Cannon 2 | . . . 2 Ballistic Gun 3 | 1 . 1 1 Ballistic Cannon . | . . . . Launcher 2 | . 1 . 1 Special Weapon . | . . . . Impact Weapon 4 | . 1 2 1 Slashing Weapon . | . . . . Piercing Weapon . | . . . . Special Melee Weapon . | . . . . Unidentified Prototypes 2 | . . 1 1 Parts Lost 20 | . 5 . 15 Power 4 | . 1 . 3 Propulsion 5 | . 1 . 4 Utility 3 | . . . 3 Weapon 8 | . 3 . 5 Highest Loss Streak 7 | . 3 . 7 To Critical Strikes . | . . . . Average Slot Usage (%) 89 | . 83 99 83 Engine 10 | . 11 11 7 Treads 5 | . 20 . 1 Leg 15 | . 6 21 14 Wheel 1 | . . . 2 Device 10 | . 3 11 15 Storage 11 | . 14 11 9 Protection 7 | . . 10 8 Energy Gun 6 | . 9 11 . Energy Cannon 2 | . . . 6 Ballistic Gun 8 | . 9 11 5 Impact Weapon 9 | . 6 11 9 Naked Turns . | . . . . Heaviest Build 30 | 12 13 18 30 Greatest Support 40 | 40 40 20 30 Greatest Overweight (x) 3 | . . . 3 Average Overweight (x) . | . . . . Largest Inventory Capacity 8 | 8 8 8 8 Average Capacity 7 | 6 8 8 8 Most Carried 8 | 6 8 8 8 Average Carried 6 | 4 6 7 6 Final Capacity 8 | 8 8 8 8 Final Carried 8 | 6 5 8 8 Class Distribution -------------------- 88% | Mutant 11% | Scavenger-Mutant Dominant Class ---------------- Mutant | -10/Materials Mutant | -9/Materials Mutant | -8/Materials Resources | -11 -10 -9 -8 ----------- Run | Yrd Mat Mat Mat Matter Collected 745 | 210 220 73 242 Remotely . | . . . . Salvage Created 1622 | . 335 486 801 Parts 71 | . 24 24 23 Haulers Intercepted . | . . . . Recyclers Shooed 2 | . 2 . . Parts Field Recycled . | . . . . Retrieved Matter . | . . . . Parts Self-Destructed . | . . . . Prevented . | . . . . Kills | -11 -10 -9 -8 ------- Run | Yrd Mat Mat Mat Combat Hostiles Destroyed 33 | . 9 7 17 Melee 16 | . 2 6 8 Guns 2 | . 2 . . Cannons 1 | . . . 1 AOE 7 | . 5 . 2 Classes Destroyed 9 | . 5 1 3 Builder 2 | . 1 1 . Recycler 4 | . 1 2 1 Operator 1 | . . . 1 Watcher 4 | . 1 2 1 Swarmer 5 | . 2 . 3 Grunt 19 | . 7 4 8 Duelist 1 | . . . 1 Sentry 6 | . . 3 3 Specialist 2 | . . . 2 Best Kill Streak 8 | . 8 6 6 Combat Bots Only 7 | . 7 3 6 Max Kills in Single Turn 4 | . 4 1 1 Gunslinging . | . . . . Exploded 3 | . 3 . 1 Melee 1 | . 1 1 1 Uniques/NPCs Destroyed . | . . . . Combat | -11 -10 -9 -8 -------- Run | Yrd Mat Mat Mat Hostile Shots Fired 304 | . 91 28 185 Missed 69 | . 21 7 41 Damage Taken 3155 | . 734 279 2142 Core 777 | . 121 99 557 Absorbed by Shields . | . . . . Redirected to Shielding 146 | . . 46 100 Regen/Repaired (Parts) 29 | . . 29 . Core Remaining (%) 75 | 100 51 75 . Volleys Fired 49 | . 39 3 7 Largest 2 | . 2 2 2 Hottest 93 | . 60 60 93 Shots Fired 69 | . 49 6 14 Gun 55 | . 47 6 2 Cannon 7 | . . . 7 Launcher 7 | . 2 . 5 Special . | . . . . Kinetic 41 | . 36 3 2 Thermal . | . . . . Explosive 7 | . 2 . 5 Electromagnetic 21 | . 11 3 7 Robot Hit Streak 5 | . 5 4 3 Robot Miss Streak 6 | . 6 1 2 Penetration Max . | . . . . Secondary Targets . | . . . . Shots Hit Robots 99 | . 30 21 48 Core Hits 40 | . 18 10 12 Critical Kills 3 | . 1 1 1 Critical Parts Destroyed 8 | . 2 1 5 Critical Strikes 11 | . 3 2 6 Destroy 1 | . 1 . . Smash 10 | . 2 2 6 Melee Attacks 88 | . 8 23 57 Impact 88 | . 8 23 57 Slashing . | . . . . Piercing . | . . . . Sneak Attacks 7 | . . 4 3 Combat Hostiles 1 | . . . 1 Follow-up Attacks . | . . . . Damage Inflicted 3731 | 2 843 1026 1860 Guns 408 | . 344 50 14 Cannons 102 | . . . 102 Explosions 536 | . 371 42 123 Melee 2679 | . 124 934 1621 Ramming 6 | 2 4 . . Kinetic 283 | . 259 10 14 Thermal 42 | . . 42 . Explosive 494 | . 371 . 123 Electromagnetic 227 | . 85 40 102 Impact 2679 | . 124 934 1621 Slashing . | . . . . Piercing . | . . . . Highest Corruption . | . . . . Average Corruption . | . . . . Corruption Purged . | . . . . Corruption Blocked . | . . . . Overload Shots . | . . . . Overflow Damage 782 | . 79 269 434 Projectiles 5 | . . . 5 Explosions 31 | . 31 . . Melee 746 | . 48 269 429 Knockbacks 14 | . 2 3 9 Impact 13 | . 1 3 9 Kinetic . | . . . . Secondary 1 | . 1 . . Self-Inflicted Damage 104 | . . . 104 Shots 3 | . . . 3 Rammed 3 | 2 1 . . Targets Rammed 3 | 2 1 . . Kicked . | . . . . Crushed . | . . . . Highest Temperature 108 | . 13 14 108 Average Temperature 25 | . 7 10 42 Received Heat Transfer 1068 | . 336 120 612 Siege Activations . | . . . . Robots Corrupted 1 | . . . 1 Combat Hostiles . | . . . . Parts Fried 13 | . . 3 10 Impact Corruptions 27 | . 2 9 16 Robots Melted . | . . . . Combat Hostiles . | . . . . Parts Melted . | . . . . Heat Transferred . | . . . . Parts Sabotaged . | . . . . Parts Stolen . | . . . . Parts Stripped . | . . . . Power Chain Reactions 1 | . . 1 . Alert | -11 -10 -9 -8 ------- Run | Yrd Mat Mat Mat Peak Influence 352 | . 273 262 352 Initial 30 | . . 30 . Average 134 | . 149 116 159 Maximum Alert Level 1 | . 1 1 1 Low Security (%) 67 | 100 48 69 74 Level 1 32 | . 51 30 25 Level 2 . | . . . . Level 3 . | . . . . Level 4 . | . . . . Level 5 . | . . . . High Security . | . . . . Max Security . | . . . . Squads Dispatched 9 | . 1 1 7 Investigation 1 | . . . 1 Extermination . | . . . . Reinforcement 5 | . 1 1 3 Assault . | . . . . Garrison 3 | . . . 3 Intercept . | . . . . Searches Triggered . | . . . . Construction Impeded 1 | . . 1 . Haulers Reinforced . | . . . . Active Scanning Responses . | . . . . Cargo Convoy Interrupts . | . . . . Stealth | -11 -10 -9 -8 --------- Run | Yrd Mat Mat Mat Distress Signals 2 | . 2 . . Communications Jammed . | . . . . Distress Signals . | . . . . Times Spotted 59 | . 18 10 31 Peak Tracking Total 11 | . 10 3 11 Tactical Retreats 5 | . . . 5 Traps | -11 -10 -9 -8 ------- Run | Yrd Mat Mat Mat Traps Triggered 1 | . . . 1 Indirectly . | . . . . Trap Hack Attempts . | . . . . Triggered . | . . . . Disarmed . | . . . . Reprogrammed . | . . . . Reused . | . . . . Traps Extracted . | . . . . Installed . | . . . . Triggered . | . . . . Machines | -11 -10 -9 -8 ---------- Run | Yrd Mat Mat Mat Machines Disabled 4 | . 2 . 2 Max in Single Turn 1 | . 1 . 1 Machines Repaired . | . . . . Machines Dismantled . | . . . . Machines Sabotaged . | . . . . Overloaded Fab Kills . | . . . . Hacking | -11 -10 -9 -8 --------- Run | Yrd Mat Mat Mat Machines Accessed 8 | . 4 4 . Terminals 7 | . 4 3 . Fabricators . | . . . . Repair Stations 1 | . . 1 . Recycling Units . | . . . . Scanalyzers . | . . . . Garrison Access . | . . . . Total Hacks 19 | . 10 9 . Successful 9 | . 3 6 . Failed 10 | . 7 3 . Catastrophic 4 | . 3 1 . Database Lockouts . | . . . . Manual 16 | . 9 7 . Terminals 17 | . 10 7 . Fabricators . | . . . . Repair Stations 2 | . . 2 . Recycling Units . | . . . . Scanalyzers . | . . . . Garrison Access . | . . . . Terminal Hacks 6 | . 3 3 . Alert Level 2 | . 1 1 . Unreport Threat 1 | . . 1 . Locate Traps 3 | . 2 1 . Fabricator Hacks . | . . . . Repair Station Hacks 2 | . . 2 . Scan Component 1 | . . 1 . Repair 1 | . . 1 . Recycling Unit Hacks . | . . . . Scanalyzer . | . . . . Garrison Access Hacks . | . . . . Unauthorized Hacks 1 | . . 1 . Terminals 1 | . . 1 . Assimilate 1 | . . 1 . Fabricators . | . . . . Repair Stations . | . . . . Recycling Units . | . . . . Scanalyzers . | . . . . Garrison Access . | . . . . Data Cores Recovered 1 | . . . 1 Used . | . . . . Hacking Detections 7 | . 4 3 . Full Trace Events 1 | . 1 . . Feedback Events . | . . . . Feedback Blocked . | . . . . Robot Schematics Acquired . | . . . . Robots Built . | . . . . Authchips . | . . . . Time . | . . . . Total Robot Build Rating . | . . . . Part Schematics Acquired . | . . . . Parts Built . | . . . . Authchips . | . . . . Time . | . . . . Total Part Build Rating . | . . . . Parts Repaired 1 | . . 1 . Time 26 | . . 26 . Parts Recycled . | . . . . Recycled Matter . | . . . . Retrieved Matter . | . . . . Retrieved Components . | . . . . Parts Scanalyzed . | . . . . Part Schematics Acquired . | . . . . Parts Damaged . | . . . . Bothacking | -11 -10 -9 -8 ------------ Run | Yrd Mat Mat Mat Used RIF Installer . | . . . . Robots Hacked . | . . . . Non-combat . | . . . . Combat . | . . . . Robot Hacks Applied . | . . . . Relay Couplers Released . | . . . . Fabnet Peak Effective % . | . . . . Robots Rewired . | . . . . Allies Hacked . | . . . . Hacks Repelled . | . . . . Allies | -11 -10 -9 -8 -------- Run | Yrd Mat Mat Mat Total Allies . | . . . . Largest Group . | . . . . Highest-Rated Group . | . . . . Highest-Rated Ally . | . . . . Total Orders . | . . . . Ally Attacks . | . . . . Total Damage . | . . . . Kills . | . . . . Allies Corrupted . | . . . . Allies Melted . | . . . . Intel | -11 -10 -9 -8 ------- Run | Yrd Mat Mat Mat Robot Analysis Total . | . . . . Derelict Logs Recovered . | . . . . Drone Launches . | . . . . Drone Recoveries . | . . . . Exploration | -11 -10 -9 -8 ------------- Run | Yrd Mat Mat Mat Turns Passed 1646 | 84 400 560 602 Spaces Moved 814 | 44 186 304 280 Core 8 | 6 . . 2 Treads 156 | 38 118 . . Legs 545 | . 68 304 173 Wheels 105 | . . . 105 Hover . | . . . . Flight . | . . . . Fastest Speed 50 | 50 120 120 100 Average Speed 129 | 145 145 120 126 Slowest Speed 200 | 160 160 120 200 Overloaded Moves . | . . . . Propulsion Burnouts . | . . . . Robots Hopped . | . . . . Cave-ins Triggered . | . . . . Exploration Rate (%) 28 | 4 47 35 26 Regions Visited 3 Branch Regions . Pre-discovered Areas . | . . . . Known Exits Taken . | . . . . Unknown Exits Taken 3 | 1 1 1 . Scrap Searched . | . . . . Spaces Dug . | . . . . Terrain Destroyed 57 | . 9 3 45 Melee . | . . . . Projectile . | . . . . AOE 57 | . 9 3 45 Terrain Rammed . | . . . . Walls Destroyed . | . . . . Machines Disabled . | . . . . Actions | -11 -10 -9 -8 --------- Run | Yrd Mat Mat Mat Total 1182 | 60 253 455 414 Wait 129 | 3 . 97 29 Move 811 | 43 185 303 280 Hop . | . . . . Pick Up 36 | 6 8 10 12 Fast Attach 23 | 6 1 5 11 Attach 19 | . 7 4 8 Detach . | . . . . Swap 3 | . . 1 2 Drop 21 | . 4 9 8 Fire 49 | . 39 3 7 Melee 88 | . 8 23 57 Ram . | . . . . Kick . | . . . . Crush 3 | 2 1 . . Escape Stasis . | . . . . Rewire . | . . . . Trap . | . . . . Miscellaneous . | . . . . Route ------- -11/Scrapyard -10/Materials (discovered 4 exits: *Mat x2 / [*Min x2]) -9/Materials (discovered 2 exits: *Mat / [*Sto]) -8/Materials History --------- Turn | Location | Event 29 | -11/Scrapyard | Discovered new exit (range 15) 85 | -11/Scrapyard | Entered Materials 141 | -10/Materials | Discovered new exit (range 4) 175 | -10/Materials | Discovered new exit (range 13) 324 | -10/Materials | Build established: Mutant 327 | -10/Materials | Destroyed 7 combat bots 342 | -10/Materials | Lost 3 parts (1p2w) 415 | -10/Materials | Discovered new exit (range 15) 468 | -10/Materials | Discovered new exit (range 10) 485 | -10/Materials | Entered another Materials area 485 | -9/Materials | Evolved 2 slots: Utility x1, Weapon x1 817 | -9/Materials | Discovered new exit (range 3) 971 | -9/Materials | Discovered new exit (range 6) 1019 | -9/Materials | Repaired Aluminum Leg 1045 | -9/Materials | Entered another Materials area 1045 | -8/Materials | Evolved 2 slots: Propulsion x1, Utility x1 1422 | -8/Materials | Garrison activated, responded to threat 1435 | -8/Materials | Lost 7 parts (1p3n1u2w) 1441 | -8/Materials | Core integrity fell below 50% 1518 | -8/Materials | Core integrity fell below 20% 1544 | -8/Materials | Lost 5 parts (1p1n2u1w) 1647 | -8/Materials | Destroyed by H-61 Shepherd with Heavy Assault Cannon Last Messages --------------- U-05 Engineer lays Concrete. K-01 Serf collects debris. U-05 Engineer lays Concrete. K-01 Serf collects debris. U-05 Engineer lays Concrete. Triggered Alarm Trap. An alarm sounds. ALERT: Alarm triggered, dispatching investigation squad. U-05 Engineer lays Concrete. Acquired 20 matter. Knocked back. H-61 Shepherd calls for reinforcements. ALERT: Hostile activity reported, dispatching reinforcements to area. Knocked back. Hvy. Mace destroyed. Critical hit (Blast). Knocked back. Atomic Centrifuge disabled. Map ----- +----------------------------------------------------+ | " """ """ #??## ##?????????????????????? | | " """ """ #### #?????????????????????? | | #?????????????????????? | | #?????????????????????? | | #?????????????????????? | | ############# ##### % #?????????????????????? | | ??????###### ## ##+##?????????????????????? | | ??????# ! !![ ###+#??##+##???????????? | | ??????# "" *!%[ !! ## ### #???????????? | | ??????#! " = = ! ## #???????????? | | ??????#% " ! ## #???????????? | | ??????# % ##### #???????????? | | ??????# # ##### #???????????? | | ?????## % #???????????? | | ?????## # """ #???????????? | | ?????## # ##### """ #???????????? | | ?????########### !%!#???# """ #???????????? | | ???????# ### #???# #???????????? | | ???????#####?#!!!! #???# #???????????? | | ?????????????#!!!! #???# +???????????? | | ?????????????########??###;+## #???????????? | | ???????????????????????; ## ##???????????? | | ??????????????????????##! ""## #????????????? | | ?????????????????????## # #????????????? | | ?????????????????????# #????????????? | | ??????????????????????# %@ #????????????????? | | ????????????????######; H # #???????????? | | ????????? #??????? | | ????????? #??????? | | ????????????########### ####????????? | | ??????????????????????## # ######???????????? | | ???????????????????????#######????????????????? | | ??????????????????????????????????????????????? | | ??????????????????????????????????????????????? | | | | | | | | | | | | | | | | | | | | | | | | | | | | | | | | | +----------------------------------------------------+ Best States ------------- Heat Dissipation 41 Energy Generation 14 Energy Capacity 265 Matter Stores 300 Matter Capacity 300 Sight Range 16 Robot Scan Range 14 Terrain Scan Density 10 ECM Strength 1 Additional Mass Support 9 Armor Coverage 300 Weapon Shielding 66 Weapon Cycling 15 Evasion (%) 55 Recoil Reduction 2 Item Schematics ----------------- None Robot Schematics ------------------ None Fabricated ------------ Nothing Alien Tech Used ----------------- None Achievements -------------- None Challenges ------------ None Game ------ Seed SpliceGravmagDrive Manual? 0 Play Time 00:26:06 Cumulative 22.2 hours Start 2024.05.30 @ 18:04:25 End 2024.05.30 @ 18:30:15 Sessions 1 Manual Loads 0 Difficulty Rogue Special Mode None Game No. 13 Rogue 13 Adventurer 0 Explorer 0 Win Type - Total 0 Types 0/0/0/0/0/0/0/0/0 Lore% 15 Gallery% 25 Achievement% 21 Wizard Run 0 Options --------- Layout 1 ASCII 0 Keyboard 0 Movement Numpad Keybinds 0 Fullscreen 1 Font 24/Smallcaps Map View 50x35 Zoom Use 0% Tactical HUD 0 Map Filters NONE Filters NONE Steam 1 RUN: 2ec2fb88-a771-40a4-9a8a-fc4a8376823c